Cogmind - Beta 9.4 @@@ ROGUE MODE // 2020.01.30 @ 20:44:58 Player: Judas Result: Destroyed by G-47 Trooper with Particle Gun Performance ------------- Evolutions (3) 1500 Regions Visited (7) 1400 Robots Destroyed (21) 105 Value Destroyed (448) 448 Prototype IDs (2) 40 Alien Tech Used (0) 0 Bonus (446) 446 TOTAL SCORE: 3939 Bonus ------- Follower Combat Kills 70 Entered Garrisons 200 Aligned with FarCom 300 Friendly Fire -124 Cogmind --------- Core Integrity 0/700 Matter 268/300 Energy 100/100 System Corruption 0% Temperature Cool (9) Movement Core (50) Location -7/Garrison Parts ------- > --- POWER (1) -------- (None) > --- PROPULSION (4) --- (None) > --- UTILITY (4) ------ Advanced Visual Processing Unit > --- WEAPON (4) ------- Autogun > --- INVENTORY (4) ---- System Backup Module Particle Gun Peak State ------------ > --- POWER ------------ Improved Deuterium Engine > --- PROPULSION ------- Light Treads Wheel Compact Wheel Armored Wheel > --- UTILITY ---------- Small Storage Unit Small Storage Unit Advanced Visual Processing Unit > --- WEAPON ----------- Lightning Gun Heavy Assault Rifle Minigun Chainsword > --- INVENTORY -------- Light Deuterium Engine Light Treads Airjet System Backup Module Heavy EM Pulse Gun Arc Projector Electrolaser Heavy Assault Rifle [Rating: 29] Favorites ----------- Power Light Nuclear Core Engine Ion Engine Power Core Light Nuclear Core Propulsion Compact Wheel Treads Light Treads Leg Aluminum Leg Wheel Compact Wheel Hover Unit Airjet Utility Small Storage Unit Device Chronowheel Storage Small Storage Unit Processor Advanced Visual Processing Unit Weapon Heavy EM Pulse Gun Energy Gun Heavy EM Pulse Gun Ballistic Gun Heavy Assault Rifle Slashing Weapon Chainsword Build | -11 -10 -10 -10 -9 -8 -7 -7 ------- Run | Scr Mat Min Exi Min Mat Fac Gar Slots Evolved 6 | . . . . . 4 2 . Power . | . . . . . . . . Propulsion 2 | . . . . . 1 1 . Utility 2 | . . . . . 1 1 . Weapon 2 | . . . . . 2 . . Parts Attached 40 | 1 4 3 5 2 7 4 14 Power 5 | . 1 . . 1 . 1 2 Engine 4 | . 1 . . . . 1 2 Core 1 | . . . . 1 . . . Reactor . | . . . . . . . . Propulsion 7 | . . 2 . 1 1 1 2 Treads 2 | . . . . . . 1 1 Leg . | . . . . . . . . Wheel 4 | . . 2 . 1 1 . . Hover 1 | . . . . . . . 1 Flight . | . . . . . . . . Utility 5 | 1 . . 2 . 2 . . Device 1 | . . . 1 . . . . Storage 2 | 1 . . 1 . . . . Processor 2 | . . . . . 2 . . Hackware . | . . . . . . . . Protection . | . . . . . . . . Artifact . | . . . . . . . . Weapon 23 | . 3 1 3 . 4 2 10 Energy Gun 14 | . 3 . 2 . 2 1 6 Energy Cannon . | . . . . . . . . Ballistic Gun 7 | . . 1 1 . 2 . 3 Ballistic Cannon . | . . . . . . . . Launcher . | . . . . . . . . Special Weapon . | . . . . . . . . Impact Weapon . | . . . . . . . . Slashing Weapon 2 | . . . . . . 1 1 Piercing Weapon . | . . . . . . . . Special Melee Weapon . | . . . . . . . . Unidentified Prototypes 2 | . . . 2 . . . . Parts Lost 26 | . 3 . . . 1 . 22 Power 3 | . 1 . . . . . 2 Propulsion 6 | . . . . . . . 6 Utility 2 | . . . . . . . 2 Weapon 15 | . 2 . . . 1 . 12 Highest Loss Streak 22 | . 2 . . . 1 . 22 Average Slot Usage (%) 92 | . 99 100 100 100 93 86 49 Engine 7 | . 14 14 14 . . 2 3 Core 4 | . . . . 13 9 4 . Leg 4 | . 28 1 . . . . . Wheel 20 | . . 26 28 28 25 23 8 Storage 23 | . 28 28 27 28 18 15 9 Processor 2 | . . . . . 6 7 7 Energy Gun 16 | . 27 19 14 14 16 14 4 Ballistic Gun 11 | . . 8 14 14 17 15 8 Naked Turns . | . . . . . . . . Heaviest Build 31 | 15 18 19 19 19 25 31 31 Greatest Support 38 | 20 20 26 26 28 38 38 38 Greatest Overweight (x) 3 | . . . . . . . 3 Average Overweight (x) . | . . . . . . . . Largest Inventory Capacity 8 | 8 8 8 8 8 8 8 8 Average Capacity 7 | 6 8 8 7 8 8 8 6 Most Carried 8 | 6 8 8 8 8 8 8 8 Average Carried 7 | 6 6 7 7 7 6 7 4 Final Capacity 8 | 8 8 8 8 8 8 8 4 Final Carried 8 | 6 8 8 7 8 7 8 2 Class Distribution -------------------- 73% | Mutant 26% | Skirmisher Dominant Class ---------------- Mutant | -10/Materials Mutant | -10/Mines Mutant | -10/Exiles Mutant | -9/Mines Skirmisher | -8/Materials Skirmisher | -7/Factory Mutant | -7/Garrison Resources | -11 -10 -10 -10 -9 -8 -7 -7 ----------- Run | Scr Mat Min Exi Min Mat Fac Gar Matter Collected 657 | 200 30 63 . 88 98 . 178 Remotely . | . . . . . . . . Salvage Created 831 | 70 162 48 . 150 213 . 188 Parts 41 | 4 10 6 . 5 10 . 6 Haulers Intercepted . | . . . . . . . . Recyclers Shooed . | . . . . . . . . Parts Field Recycled . | . . . . . . . . Retrieved Matter . | . . . . . . . . Parts Self-Destructed . | . . . . . . . . Prevented . | . . . . . . . . Kills | -11 -10 -10 -10 -9 -8 -7 -7 ------- Run | Scr Mat Min Exi Min Mat Fac Gar Combat Hostiles Destroyed 17 | . 6 3 . 3 2 . 3 Guns 17 | . 6 3 . 3 2 . 3 Classes Destroyed 5 | 1 1 . . 1 1 . 1 Recycler 3 | 1 1 . . . 1 . . Swarmer 10 | . 6 3 . . . . 1 Grunt 5 | . . . . 3 . . 2 Brawler 1 | . . . . . . . 1 Sentry 2 | . . . . . 2 . . Best Kill Streak 4 | 1 4 3 . 2 2 . 2 Combat Bots Only 4 | . 4 3 . 2 1 . 2 Max Kills in Single Turn 2 | 1 1 2 . 1 1 . 1 Gunslinging 1 | . . 1 . . . . . Exploded . | . . . . . . . . Melee . | . . . . . . . . Uniques/NPCs Destroyed . | . . . . . . . . Combat | -11 -10 -10 -10 -9 -8 -7 -7 -------- Run | Scr Mat Min Exi Min Mat Fac Gar Damage Taken 2925 | . 303 108 . 106 133 . 2275 Core 782 | . 25 27 . 26 . . 704 Absorbed by Shields . | . . . . . . . . Core Remaining (%) 89 | 100 . . . 68 100 . . Volleys Fired 76 | 2 21 7 . 6 4 . 36 Largest 4 | 2 2 2 . 2 4 . 4 Hottest 166 | 80 85 85 . 68 156 . 166 Shots Fired 145 | 4 39 14 . 12 14 . 62 Gun 145 | 4 39 14 . 12 14 . 62 Cannon . | . . . . . . . . Launcher . | . . . . . . . . Special . | . . . . . . . . Kinetic 59 | . . 6 . 6 8 . 39 Thermal 12 | . . . . . 4 . 8 Explosive . | . . . . . . . . Electromagnetic 74 | 4 39 8 . 6 2 . 15 Robot Hit Streak 8 | 4 5 7 . 8 4 . 6 Robot Miss Streak 6 | . 6 2 . 1 1 . 5 Penetration Max . | . . . . . . . . Secondary Targets 3 | . . 1 . . . . 2 Max Gunslinging Chain 1 | . . 1 . . . . 1 Shots Hit Robots 75 | 4 15 10 . 8 5 . 33 Core Hits 34 | 2 7 4 . 5 5 . 11 Critical Hits . | . . . . . . . . Critical Kills . | . . . . . . . . Critical Parts Destroyed . | . . . . . . . . Melee Attacks 5 | . . . . . . 3 2 Impact . | . . . . . . . . Slashing 5 | . . . . . . 3 2 Piercing . | . . . . . . . . Sneak Attacks . | . . . . . . . . Combat Hostiles . | . . . . . . . . Follow-up Attacks . | . . . . . . . . Damage Inflicted 1258 | 52 260 132 . 126 114 . 574 Guns 1148 | 52 199 132 . 126 114 . 525 Cannons . | . . . . . . . . Explosions 110 | . 61 . . . . . 49 Melee . | . . . . . . . . Ramming . | . . . . . . . . Kinetic 442 | . . 53 . 61 34 . 294 Thermal 241 | . 61 . . . 50 . 130 Explosive . | . . . . . . . . Electromagnetic 575 | 52 199 79 . 65 30 . 150 Impact . | . . . . . . . . Slashing . | . . . . . . . . Piercing . | . . . . . . . . Highest Corruption . | . . . . . . . . Average Corruption . | . . . . . . . . Corruption Purged . | . . . . . . . . Overload Shots . | . . . . . . . . Overflow Damage 1 | . . . . . . . 1 Projectiles . | . . . . . . . . Explosions 1 | . . . . . . . 1 Melee . | . . . . . . . . Knockbacks . | . . . . . . . . Impact . | . . . . . . . . Kinetic . | . . . . . . . . Secondary . | . . . . . . . . Self-Inflicted Damage 80 | . 32 . . . . . 48 Shots 2 | . 1 . . . . . 1 Rammed . | . . . . . . . . Targets Rammed . | . . . . . . . . Kicked . | . . . . . . . . Crushed . | . . . . . . . . Highest Temperature 338 | 36 243 24 . 75 96 . 338 Average Temperature 89 | 20 91 8 . 29 50 . 144 Received Heat Transfer 1074 | . 6 9 . 60 27 . 972 Siege Activations . | . . . . . . . . Robots Corrupted . | . . . . . . . . Combat Hostiles . | . . . . . . . . Parts Fried . | . . . . . . . . Impact Corruptions . | . . . . . . . . Robots Melted . | . . . . . . . . Combat Hostiles . | . . . . . . . . Parts Melted 1 | . 1 . . . . . . Heat Transferred 435 | . 100 . . . 111 . 224 Parts Sabotaged . | . . . . . . . . Parts Stolen . | . . . . . . . . Parts Stripped . | . . . . . . . . Power Chain Reactions 2 | . 1 . . . . . 1 Missiles Intercepted . | . . . . . . . . Alert | -11 -10 -10 -10 -9 -8 -7 -7 ------- Run | Scr Mat Min Exi Min Mat Fac Gar Peak Influence 213 | 5 118 130 . 88 213 99 69 Average Influence 71 | 3 42 79 . 75 111 96 12 Maximum Alert Level 1 | . . . . . 1 . . Low Security (%) 97 | 100 100 100 . 100 83 100 100 Level 1 2 | . . . . . 16 . . Level 2 . | . . . . . . . . Level 3 . | . . . . . . . . Level 4 . | . . . . . . . . Level 5 . | . . . . . . . . High Security . | . . . . . . . . Max Security . | . . . . . . . . Squads Dispatched . | . . . . . . . . Investigation . | . . . . . . . . Extermination . | . . . . . . . . Reinforcement . | . . . . . . . . Assault . | . . . . . . . . Garrison . | . . . . . . . . Intercept . | . . . . . . . . Construction Impeded . | . . . . . . . . Haulers Reinforced . | . . . . . . . . Stealth | -11 -10 -10 -10 -9 -8 -7 -7 --------- Run | Scr Mat Min Exi Min Mat Fac Gar Distress Signals 1 | . . . . . 1 . . Communications Jammed . | . . . . . . . . Distress Signals . | . . . . . . . . Times Spotted 34 | . 9 4 . 5 3 . 13 Peak Tracking Total 9 | . 3 3 . 3 3 . 9 Tactical Retreats 3 | . 1 . . . . . 2 Traps | -11 -10 -10 -10 -9 -8 -7 -7 ------- Run | Scr Mat Min Exi Min Mat Fac Gar Traps Triggered 1 | . . . . . 1 . . Indirectly . | . . . . . . . . Trap Hack Attempts . | . . . . . . . . Triggered . | . . . . . . . . Disarmed . | . . . . . . . . Reprogrammed . | . . . . . . . . Reused . | . . . . . . . . Traps Extracted . | . . . . . . . . Installed . | . . . . . . . . Triggered . | . . . . . . . . Exploded 2 | . . . 2 . . . . Machines | -11 -10 -10 -10 -9 -8 -7 -7 ---------- Run | Scr Mat Min Exi Min Mat Fac Gar Machines Disabled . | . . . . . . . . Max in Single Turn . | . . . . . . . . Machines Sabotaged . | . . . . . . . . Garrisons Compromised . | . . . . . . . . Overloaded Fab Kills . | . . . . . . . . Fab Network Shutdowns . | . . . . . . . . Hacking | -11 -10 -10 -10 -9 -8 -7 -7 --------- Run | Scr Mat Min Exi Min Mat Fac Gar Machines Accessed 6 | . 1 . 3 . . 2 . Terminals 2 | . 1 . . . . 1 . Fabricators . | . . . . . . . . Repair Stations . | . . . . . . . . Recycling Units . | . . . . . . . . Scanalyzers . | . . . . . . . . Garrison Access 1 | . . . . . . 1 . Total Hacks 31 | . 2 . 25 . . 4 . Successful 26 | . . . 25 . . 1 . Failed 5 | . 2 . . . . 3 . Catastrophic . | . . . . . . . . Database Lockouts . | . . . . . . . . Manual 5 | . 2 . 1 . . 2 . Terminals 4 | . 2 . . . . 2 . Fabricators . | . . . . . . . . Repair Stations . | . . . . . . . . Recycling Units . | . . . . . . . . Scanalyzers . | . . . . . . . . Garrison Access 2 | . . . . . . 2 . Terminal Hacks 25 | . . . 25 . . . . Record 25 | . . . 25 . . . . Fabricator Hacks . | . . . . . . . . Repair Station Hacks . | . . . . . . . . Recycling Unit Hacks . | . . . . . . . . Scanalyzer . | . . . . . . . . Garrison Access Hacks 1 | . . . . . . 1 . Unlock Access 1 | . . . . . . 1 . Unauthorized Hacks 1 | . . . . . . 1 . Terminals . | . . . . . . . . Fabricators . | . . . . . . . . Repair Stations . | . . . . . . . . Recycling Units . | . . . . . . . . Scanalyzers . | . . . . . . . . Garrison Access . | . . . . . . . . Data Cores Recovered . | . . . . . . . . Used . | . . . . . . . . Hacking Detections 3 | . 1 . . . . 2 . Full Trace Events . | . . . . . . . . Feedback Events . | . . . . . . . . Feedback Blocked . | . . . . . . . . Robot Schematics Acquired . | . . . . . . . . Robots Built . | . . . . . . . . Matter . | . . . . . . . . Time . | . . . . . . . . Total Robot Build Rating . | . . . . . . . . Part Schematics Acquired . | . . . . . . . . Parts Built . | . . . . . . . . Matter . | . . . . . . . . Time . | . . . . . . . . Total Part Build Rating . | . . . . . . . . Parts Repaired . | . . . . . . . . Time . | . . . . . . . . Parts Recycled . | . . . . . . . . Recycled Matter . | . . . . . . . . Retrieved Matter . | . . . . . . . . Retrieved Components . | . . . . . . . . Parts Scanalyzed . | . . . . . . . . Part Schematics Acquired . | . . . . . . . . Parts Damaged . | . . . . . . . . Bothacking | -11 -10 -10 -10 -9 -8 -7 -7 ------------ Run | Scr Mat Min Exi Min Mat Fac Gar Used RIF Installer . | . . . . . . . . Robots Hacked . | . . . . . . . . Non-combat . | . . . . . . . . Combat . | . . . . . . . . Robot Hacks Applied . | . . . . . . . . Relay Couplers Released . | . . . . . . . . Robots Rewired . | . . . . . . . . Allies Hacked . | . . . . . . . . Hacks Repelled . | . . . . . . . . Allies | -11 -10 -10 -10 -9 -8 -7 -7 -------- Run | Scr Mat Min Exi Min Mat Fac Gar Total Allies 5 | . . . . 5 . . . Largest Group 5 | . . . . 5 5 5 5 Highest-Rated Group 86 | . . . . 86 86 86 86 Highest-Rated Ally 31 | . . . . 31 31 31 31 Total Orders . | . . . . . . . . Ally Attacks 24 | . . . . 3 12 . 9 Total Damage 304 | . . . . 26 151 . 127 Kills 3 | . . . . . 3 . . Allies Corrupted . | . . . . . . . . Allies Melted . | . . . . . . . . Intel | -11 -10 -10 -10 -9 -8 -7 -7 ------- Run | Scr Mat Min Exi Min Mat Fac Gar Robot Analysis Total . | . . . . . . . . Derelict Logs Recovered 3 | . . 1 . 2 . . . Drone Launches . | . . . . . . . . Drone Recoveries . | . . . . . . . . Exploration | -11 -10 -10 -10 -9 -8 -7 -7 ------------- Run | Scr Mat Min Exi Min Mat Fac Gar Turns Passed 1869 | 21 302 225 310 380 240 239 152 Spaces Moved 1519 | 12 192 209 328 317 210 220 31 Core 13 | . . . . . . . 13 Treads 1 | . . . . . . . 1 Legs 209 | 12 192 5 . . . . . Wheels 1294 | . . 204 328 317 210 220 15 Hover 2 | . . . . . . . 2 Flight . | . . . . . . . . Fastest Speed 50 | 120 120 90 90 90 90 90 50 Average Speed 95 | 120 120 90 90 92 90 90 106 Slowest Speed 200 | 120 120 120 90 95 95 90 200 Overloaded Moves . | . . . . . . . . Propulsion Burnouts . | . . . . . . . . Robots Hopped . | . . . . . . . . Cave-ins Triggered . | . . . . . . . . Exploration Rate (%) 32 | 2 40 45 66 68 20 7 10 Regions Visited 7 Branch Regions 3 Pre-discovered Areas 4 | . . 2 . 2 . . . Known Exits Taken 1 | . . . . . . 1 . Unknown Exits Taken 6 | 1 1 1 1 1 1 . . Scrap Searched 3 | . . 2 . 1 . . . Spaces Dug 3 | . . . . . . 3 . Terrain Destroyed 7 | . 4 . . . . 3 . Melee 3 | . . . . . . 3 . Projectile . | . . . . . . . . AOE 4 | . 4 . . . . . . Actions | -11 -10 -10 -10 -9 -8 -7 -7 --------- Run | Scr Mat Min Exi Min Mat Fac Gar Total 1807 | 14 224 230 345 391 250 257 96 Wait 133 | . 2 7 . 66 25 22 11 Move 1513 | 11 191 208 327 316 209 220 31 Hop . | . . . . . . . . Pick Up 20 | . 5 2 5 . 3 4 1 Fast Attach 16 | 1 1 1 3 1 2 1 6 Attach 17 | . 3 . 2 . 4 1 7 Detach . | . . . . . . . . Swap 7 | . . 2 . 1 1 2 1 Drop 20 | . 1 3 8 1 2 4 1 Fire 76 | 2 21 7 . 6 4 . 36 Melee 5 | . . . . . . 3 2 Ram . | . . . . . . . . Kick . | . . . . . . . . Crush . | . . . . . . . . Escape Stasis . | . . . . . . . . Rewire . | . . . . . . . . Trap . | . . . . . . . . Miscellaneous . | . . . . . . . . Route ------- -11/Scrapyard -10/Materials -10/Mines -10/Exiles (discovered 2 exits: [*Min x2]) -9/Mines -8/Materials -7/Factory -7/Garrison History --------- Turn | Location | Event 1 | -11/Scrapyard | Discovered new exit (range 3) 22 | -11/Scrapyard | Entered Materials 103 | -10/Materials | Discovered new exit (range 11) 312 | -10/Materials | Build established: Mutant 324 | -10/Materials | Entered Mines 388 | -10/Mines | Met a Derelict bent on vengeance 389 | -10/Mines | Joined a pair of Derelicts in attacking an 0b10 outpost 487 | -10/Mines | Learned location of Storage (-7) 546 | -10/Mines | Deemed a non-threat by the Exiles lab entrance 546 | -10/Mines | Discovered new exit (range 5) 549 | -10/Mines | Entered Exiles 570 | -10/Exiles | Discovered new exit (range 15) 587 | -10/Exiles | Met 8R-AWN 604 | -10/Exiles | Met EX-HEX 634 | -10/Exiles | Met EX-BIN 647 | -10/Exiles | Aligned with FarCom system 648 | -10/Exiles | Given EX-Vault access code 699 | -10/Exiles | Opened EX-Vault 705 | -10/Exiles | Found Prototype Device 709 | -10/Exiles | Found Prototype Energy Gun 711 | -10/Exiles | Identified AWS/Thermal 719 | -10/Exiles | Identified Chronowheel 719 | -10/Exiles | Activated Chronowheel 748 | -10/Exiles | Warned to stay clear of 0b10 Research branches 751 | -10/Exiles | Exiles lab attacked by MAIN.C 849 | -10/Exiles | Discovered new exit (range 14) 859 | -10/Exiles | Entered Mines 905 | -9/Mines | Learned location of Recycling (-7) 916 | -9/Mines | Assisted by bots powering up and referring to "LRC-V3" 1196 | -9/Mines | Discovered new exit (range 13) 1204 | -9/Mines | Assembled infested the area 1209 | -9/Mines | Assisted by a Guerilla fighting off Assembled 1239 | -9/Mines | Entered Materials 1239 | -8/Materials | Accompanied by 5 allies 1239 | -8/Materials | Evolved 4 slots: Propulsion x1, Utility x1, Weapon x2 1244 | -8/Materials | Led the pair of lost Derelicts to an unsafe place 1437 | -8/Materials | Discovered new exit (range 3) 1479 | -8/Materials | Entered Factory 1479 | -7/Factory | Accompanied by 5 allies 1479 | -7/Factory | Evolved 2 slots: Propulsion x1, Utility x1 1557 | -7/Factory | Build established: Skirmisher 1711 | -7/Factory | Identified exit to Garrison 1718 | -7/Factory | Entered Garrison 1718 | -7/Garrison | Accompanied by 5 allies 1736 | -7/Garrison | Triggered checkpoint 1798 | -7/Garrison | Core integrity fell below 50% 1827 | -7/Garrison | Core integrity fell below 20% 1870 | -7/Garrison | Destroyed by G-47 Trooper with Particle Gun Last Messages --------------- 01819_ Lgt. Deuterium Engine destroyed. 01822_ Acquired 48 matter. 01824_ Airjet destroyed. 01826_ Acquired Sml. Laser. 01828_ Hvy. EM Pulse Gun destroyed. 01832_ Chainsword destroyed. 01837_ Sml. Laser destroyed. 01841_ Acquired Particle Gun. 01841_ Particle Gun destroyed. 01843_ G-47 Trooper misfires. 01845_ Acquired Autogun. 01847_ Sml. Storage Unit destroyed. 01851_ Autogun destroyed. 01855_ Acquired Autogun. 01857_ G-47 Trooper IFF system glitched. 01864_ Acquired 47 matter. 01867_ Lgt. Treads destroyed. 01868_ P-60 Hacker resets G-47 Trooper, system corruption cleaned. 01868_ Acquired Particle Gun. 01870_ P-60 Hacker resets G-47 Trooper, system corruption cleaned. Map ----- +----------------------------------------------------+ | ?????????????????????????????????????????????????? | | ?????????????????????????????????????????????????? | | ?????????????????????????????????????????????????? | | ?????????????????????????????????????????????????? | | ?????????????????????????????????????????????????? | | ?????????????????????????????????????????????????? | | ?????????????????????????????????????????????????? | | ?????????????????????????????????????????????????? | | ??????????????????????#######????????????????????? | | ??????????????????????# #????????????????????? | | ??????????????????????# #????????????????????? | | ??????????????????????# #????????????????????? | | ??????????????????????### #????????????????????? | | ????????????????????????# #????????????????????? | | ????????????????????????# #????????????????????? | | ????????????????????????# #????????????????????? | | ????????????????????????# #????????????????????? | | ????????????????????????# =%#????????????????????? | | ????????????????????????# =*#????????????????????? | | ????????????????????????#! *#????????????????????? | | ????????????????????????# ###??????????????????? | | ????????????????????????#!**!%#??????????????????? | | ????????????????????????#%g!*=+??????????????????? | | ????????????????????????#^g^==##?????????????????? | | ????????????????????????#%= ###??????????????????? | | ????????????????????????#@=%#????????????????????? | | ????????????????????????#%=*#????????????????????? | | ????????????????????????#= =#????????????????????? | | ????????????????????????# #????????????????????? | | ????????????????????????# #????????????????????? | | ????????????????????????# #????????????????????? | | ????????????????????????# #????????????????????? | | ???????????????????????? +????????????????????? | | ???????????????????????? +????????????????????? | | ???????????????????????## #????????????????????? | | ????????????????????????# #?????????g??????????? | | ????????????????????????# p#????????????????????? | | ????????????g???????????# #????????????????????? | | ????????????????????????# #????????????????????? | | ????????????g???????????# #????????????????????? | | ????????????????????????# #????????????????????? | | ????????????????????????# ????????????????????? | | ????????????????????????? ????????????????????? | | ????????????????????????? ????????????????????? | | ?????????????????????????###?????????????????????? | | ?????????????????????????????????????????????????? | | ?????????????????????????????????????????????????? | | ?????????????????????????????????????????????????? | | ?????????????????????????????????????????????????? | | ?????????????????????????????????????????????????? | +----------------------------------------------------+ Best States ------------- Heat Dissipation 34 Energy Generation 18 Energy Capacity 290 Matter Stores 300 Matter Capacity 300 Sight Range 20 Terrain Scan Density 10 Evasion (%) 42 Recoil Reduction 1 Item Schematics ----------------- None Robot Schematics ------------------ None Fabricated ------------ Nothing Alien Tech Used ----------------- None Achievements -------------- None Challenges ------------ None Game ------ Seed ElectronAntimissileSabre Manual? 0 Play Time 00:27:46 Cumulative 36.4 hours Start 2020.01.30 @ 20:19:19 End 2020.01.30 @ 20:44:58 Sessions 1 Manual Loads 0 Difficulty Rogue Special Mode None Game No. 68 Rogue 68 Adventurer 0 Explorer 0 Win Type - Total 0 Types 0/0/0/0/0/0/0 Lore% 25 Gallery% 31 Achievement% 26 Wizard Run 0 Options --------- ASCII 0 Keyboard 0 Movement Mouse Keybinds 0 Fullscreen 2 Font 18/SmallcapsGlow Map View 76x50 Tactical HUD 1 Map Filters NONE Filters NONE Steam 1 RUN: 7f62dfc9-0d35-4674-84bd-5b26d3945557